bitfinex/quotes_SOLUSD_20260309
["timestamp","ask_amount","ask_price","bid_price","bid_amount"]
[1773097937863,4.17626414,85.8,85.784,4.24972733]
[1773097938653,4.34479746,85.804,85.786,4.24972733]
[1773097938872,15.83000617,85.81,85.786,4.24972733]
[1773097939068,20.17480363,85.81,85.786,4.24972733]
[1773097940767,20.17480363,85.81,85.785,4.24972733]
[1773097940768,4.34479746,85.809,85.785,4.24972733]
[1773097943263,4.34479746,85.807,85.785,4.24972733]
[1773097943662,4.34479746,85.789,85.78,1e-08]
[1773097946779,16.00137308,85.789,85.78,1e-08]
[1773097947888,4.34479746,85.799,85.78,1e-08]
[1773097948184,4.34479746,85.797,85.78,1e-08]
[1773097949762,11.65555503,85.796,85.78,1e-08]
[1773097958174,11.65555503,85.796,85.78,4.16746689]
[1773097958579,4.47449572,85.795,85.77,0.2]
[1773097960585,11.65582674,85.794,85.771,0.46023743]
[1773097961106,11.65582674,85.794,85.773,0.46023743]
[1773097961786,16.13032246,85.794,85.773,0.46023743]
[1773097962791,45.26988932,85.794,85.773,0.46023743]
[1773097962991,4.47449572,85.793,85.773,0.46023743]
[1773097963981,11.65609847,85.792,85.773,0.46023743]
[1773097965892,4.47449572,85.791,85.735,0.46023743]
[1773097966072,4.47449572,85.791,85.731,0.46023743]
[1773097966073,4.17626414,85.76,85.731,0.46023743]
[1773097966276,4.47449572,85.759,85.731,0.46023743]
[1773097966474,4.47449572,85.759,85.7,0.2]
[1773097966475,4.17626414,85.74,85.701,0.46023743]
[1773097966698,4.47449572,85.739,85.703,0.46023743]
[1773097967073,4.47449572,85.749,85.711,0.46023743]
[1773097967883,4.34641803,85.748,85.711,0.46023743]
[1773097968084,4.34641803,85.747,85.713,0.46023743]
[1773097969297,4.17626414,85.74,85.714,11.66670555]
[1773097969481,4.34641803,85.745,85.715,0.46023743]
[1773097970582,4.17626414,85.74,85.715,0.46023743]
[1773097971098,4.34641803,85.743,85.717,0.46023743]
[1773097972595,4.34641803,85.743,85.7,4.37626414]
[1773097972596,4.34641803,85.727,85.7,0.2]
[1773097972785,4.34641803,85.719,85.7,0.2]
[1773097974886,4.34641803,85.718,85.7,0.2]
[1773097975398,11.66357581,85.737,85.701,0.76023743]
[1773097976801,40.82251535,85.737,85.703,0.76023743]
[1773097977009,11.66357581,85.737,85.703,0.76023743]
[1773097977199,4.34641803,85.736,85.703,0.76023743]
[1773097980402,11.6638479,85.735,85.704,11.66806683]
[1773097980604,4.34641803,85.734,85.705,0.76023743]
[1773097982091,4.34641803,85.719,85.7,0.2]
[1773097982911,4.34641803,85.719,85.701,11.66847528]
[1773097983108,11.66616113,85.718,85.7,0.2]
[1773097983291,16.01257916,85.718,85.7,0.2]
[1773097983491,4.18052564,85.717,85.7,0.2]
[1773097983904,4.18052564,85.717,85.69,0.1]
[1773097984107,4.18052564,85.709,85.68,0.1]
[1773097984390,4.18052564,85.699,85.68,0.1]
[1773097984817,4.18052564,85.697,85.68,0.1]
[1773097986701,4.18052564,85.679,85.652,0.76023743]
[1773097986895,11.66901991,85.697,85.654,4.24487251]
[1773097987094,4.17626414,85.69,85.654,4.24487251]
[1773097989011,4.18052564,85.687,85.655,11.67474169]
[1773097989200,4.18052564,85.687,85.656,4.24487251]
[1773097989898,4.18052564,85.687,85.661,4.24487251]
[1773097991210,4.18052564,85.687,85.651,29.18787931]
[1773097991211,4.18052564,85.685,85.658,4.24487251]
[1773097992013,4.18052564,85.685,85.661,4.24487251]
[1773097993406,15.85131598,85.684,85.662,15.91866018]
[1773097994092,15.85131598,85.684,85.663,4.24487251]
[1773097994587,4.18052564,85.683,85.659,4.24487251]
[1773097994992,4.18052564,85.691,85.661,4.24487251]
[1773097995191,11.66960297,85.693,85.671,4.24487251]
[1773097996401,4.18052564,85.695,85.671,4.24487251]
[1773097996909,11.66942843,85.694,85.672,11.67242506]
[1773097997115,11.66942843,85.694,85.673,4.24487251]
[1773097998290,4.18052564,85.7,85.681,4.24487251]
[1773097998494,4.18052564,85.7,85.675,4.24487251]
[1773097999296,4.18052564,85.7,85.677,4.24487251]
[1773097999498,4.18052564,85.698,85.677,4.24487251]
[1773098002818,4.18052564,85.698,85.678,15.91648015]
[1773098003009,4.18052564,85.698,85.68,4.18598191]
[1773098003620,4.18052564,85.698,85.678,15.91648015]
[1773098004616,4.18052564,85.696,85.668,4.24487251]
[1773098004825,4.18052564,85.696,85.602,46.72767766]
[1773098004826,4.18052564,85.679,85.632,4.24487251]
[1773098005018,4.18052564,85.659,85.632,4.24487251]
[1773098006141,4.18052564,85.669,85.632,4.24487251]
[1773098006803,4.18052564,85.669,85.62,0.1]
[1773098006804,4.18052564,85.676,85.634,4.24487251]
[1773098007124,4.18052564,85.676,85.651,4.24487251]
[1773098008124,15.85177446,85.681,85.651,4.24487251]
[1773098011823,4.18598191,85.69,85.651,4.24487251]
[1773098012024,4.18052564,85.68,85.653,4.24487251]
[1773098013028,4.18052564,85.68,85.66,4.18598191]
[1773098013230,4.18052564,85.68,85.661,4.24487251]
[1773098016128,11.67147142,85.679,85.661,4.24487251]
[1773098016537,15.80182355,85.679,85.661,4.24487251]
[1773098018220,4.13035213,85.678,85.661,4.24487251]
[1773098027725,4.13035213,85.678,85.662,11.67378767]
[1773098027930,4.11227877,85.684,85.663,4.07347768]
[1773098029549,4.11227877,85.684,85.664,15.7469928]
[1773098029743,4.11227877,85.684,85.665,4.07347768]
[1773098031428,4.11227877,85.682,85.665,4.07347768]
[1773098031849,4.11227877,85.682,85.66,4.07347768]
[1773098033344,4.11227877,85.68,85.66,4.07347768]
[1773098036051,4.11227877,85.68,85.662,4.07347768]
[1773098037954,4.11227877,85.704,85.67,4.18598191]
[1773098038135,4.11227877,85.704,85.681,4.07347768]
[1773098038330,4.11227877,85.702,85.673,4.07347768]
[1773098038657,4.11227877,85.699,85.67,4.18598191]
[1773098039032,4.11227877,85.699,85.671,4.07347768]
[1773098039634,4.11227877,85.699,85.681,4.07347768]
[1773098040047,4.11227877,85.704,85.683,4.07347768]
[1773098040838,27.24375593,85.729,85.691,4.07347768]
[1773098041039,4.11227877,85.728,85.72,4.18598191]
[1773098041240,23.13147716,85.729,85.72,4.18598191]
[1773098041654,4.11227877,85.738,85.72,8.25945959]
[1773098041834,4.11227877,85.738,85.72,4.18598191]
[1773098043058,4.11227877,85.738,85.721,11.66575284]
[1773098044670,4.28494686,85.743,85.722,4.29832497]
[1773098046753,4.28494686,85.741,85.722,4.29832497]
[1773098046957,4.28494686,85.741,85.721,11.66575284]
[1773098050454,4.28494686,85.741,85.722,4.29832497]
[1773098051062,4.28494686,85.749,85.722,4.29832497]
[1773098051466,4.28494686,85.749,85.731,4.29832497]
[1773098051656,4.28494686,85.755,85.731,4.29832497]
[1773098053950,4.28494686,85.755,85.732,11.66425605]
[1773098054155,4.28494686,85.755,85.733,4.29832497]
[1773098056151,4.28494686,85.755,85.734,11.66398395]
[1773098056351,4.28494686,85.755,85.735,4.29832497]
[1773098059556,4.28494686,85.755,85.736,11.66371185]
[1773098059774,4.28494686,85.755,85.736,15.96203682]
[1773098060466,4.28494686,85.755,85.737,4.29832497]
[1773098063880,11.65922419,85.769,85.741,4.29832497]
[1773098064052,4.28494686,85.768,85.741,4.29832497]
[1773098064252,4.28494686,85.768,85.738,11.66343978]
[1773098065255,4.28494686,85.768,85.74,4.17978024]
[1773098065460,4.28494686,85.768,85.741,4.29832497]
[1773098066266,4.28494686,85.768,85.75,4.17978024]
[1773098066267,11.65949607,85.767,85.75,4.17978024]
[1773098066466,4.28494686,85.766,85.742,11.66289566]
[1773098066858,4.28494686,85.766,85.742,15.96122063]
[1773098067174,4.28494686,85.766,85.743,4.29832497]
[1773098068275,0.2,85.77,85.751,4.29832497]
[1773098068661,4.48494686,85.77,85.751,4.29832497]
[1773098069079,4.28494686,85.768,85.75,4.17978024]
[1773098069273,4.28494686,85.768,85.746,4.29832497]
[1773098070778,4.28494686,85.768,85.747,11.66221558]
[1773098070985,11.65949607,85.767,85.75,4.17978024]
[1773098071278,4.28494686,85.766,85.747,11.66221558]
[1773098071581,4.28494686,85.766,85.747,15.96054055]
[1773098075984,4.28494686,85.766,85.748,4.48136689]
[1773098076367,4.48100503,85.764,85.748,4.48136689]
[1773098077386,4.48100503,85.769,85.751,4.48136689]
[1773098077772,0.2,85.77,85.751,4.48136689]
[1773098078272,4.68100503,85.77,85.752,11.66153559]
[1773098078472,4.68100503,85.77,85.752,16.14290248]
[1773098078671,4.68100503,85.77,85.753,4.48136689]
[1773098080391,4.68100503,85.77,85.726,58.3253297]
[1773098080392,4.48100503,85.787,85.756,4.48136689]
[1773098080686,4.48100503,85.787,85.75,4.17978024]
[1773098081666,4.48100503,85.769,85.736,4.48136689]
[1773098082570,4.48100503,85.767,85.738,4.48136689]
[1773098082765,4.48100503,85.784,85.75,4.17978024]
[1773098082968,4.68100503,85.79,85.77,4.17978024]
[1773098083168,4.48100503,85.788,85.751,4.48136689]
[1773098083485,4.48100503,85.769,85.737,11.66357581]
[1773098085187,4.17978024,85.77,85.732,4.48136689]
[1773098085188,4.48100503,85.767,85.732,4.48136689]
[1773098086786,4.48100503,85.767,85.74,8.66114713]
[1773098087093,4.48100503,85.765,85.74,20.32427367]
[1773098089293,4.48100503,85.763,85.741,4.48136689]
[1773098090185,4.48100503,85.786,85.751,4.48136689]
[1773098090378,4.48100503,85.786,85.76,4.17978024]
[1773098090681,4.48100503,85.786,85.758,4.48136689]
[1773098090873,4.48100503,85.786,85.751,4.48136689]
[1773098091491,4.24746513,85.784,85.751,16.14302288]
[1773098091992,4.24746513,85.784,85.752,4.14994851]
[1773098093275,4.24746513,85.784,85.753,4.14994851]
[1773098094190,4.24746513,85.779,85.74,4.17978024]
[1773098094684,4.24746513,85.779,85.741,4.14994851]
[1773098095793,4.24746513,85.777,85.742,11.66280735]
[1773098096584,4.24746513,85.777,85.743,4.14994851]
[1773098097887,4.24746513,85.775,85.745,4.14994851]
[1773098099878,4.24746513,85.773,85.745,4.14994851]
[1773098100190,4.24746513,85.773,85.741,4.14994851]
[1773098100396,40.8049059,85.774,85.731,29.16091195]
[1773098100397,4.24746513,85.769,85.731,15.81434062]
[1773098100596,4.24746513,85.769,85.732,4.14994851]
[1773098101284,4.24746513,85.769,85.74,4.17978024]
[1773098101482,4.24746513,85.769,85.751,4.14994851]
[1773098101879,4.24746513,85.769,85.741,4.14994851]
[1773098102601,4.24746513,85.767,85.743,4.14994851]
[1773098106300,4.23812293,85.765,85.738,11.66333257]
[1773098108197,4.23812293,85.759,85.726,11.66498774]
[1773098108407,4.23812293,85.757,85.726,15.91298955]
[1773098109098,4.23812293,85.757,85.727,4.24800181]
[1773098109499,11.66071969,85.758,85.667,81.69191134]
[1773098109500,4.23812293,85.749,85.711,11.6671139]
[1773098109701,4.23812293,85.749,85.711,15.91511571]
[1773098109895,4.23812293,85.749,85.712,4.24800181]
[1773098110401,4.23812293,85.747,85.713,11.66684166]
[1773098110707,4.23812293,85.747,85.721,4.24800181]
[1773098112287,4.23812293,85.747,85.713,40.83394583]
[1773098112288,4.23812293,85.753,85.731,4.24800181]
[1773098116907,4.23812293,85.751,85.731,4.24800181]
[1773098118914,4.23812293,85.768,85.74,4.17978024]
[1773098119113,4.23812293,85.768,85.741,4.24800181]
[1773098119305,4.23812293,85.775,85.751,4.24800181]
[1773098119505,4.23812293,85.78,85.751,4.24800181]
[1773098121015,4.23812293,85.769,85.73,4.17978024]
[1773098121320,4.23812293,85.769,85.73,8.42778205]
[1773098121520,4.23812293,85.769,85.69,1.16699731]
[1773098121521,4.23812293,85.759,85.699,4.24800181]
[1773098121704,4.23812293,85.749,85.711,4.24800181]
[1773098124021,4.23812293,85.749,85.71,4.18175136]
[1773098124022,4.23812293,85.747,85.713,4.24800181]
[1773098127116,4.23812293,85.747,85.72,4.18175136]
[1773098127322,15.89973032,85.752,85.721,4.24800181]
[1773098127724,4.23812293,85.751,85.721,4.24800181]
[1773098129723,4.23812293,85.749,85.723,4.24800181]
[1773098131524,4.23812293,85.749,85.722,11.66561676]
[1773098132826,4.23812293,85.747,85.723,4.24800181]
[1773098133324,11.6602537,85.762,85.74,4.18175136]
[1773098133531,4.44295607,85.761,85.74,8.27380126]
[1773098133710,4.44295607,85.761,85.741,4.0920499]
[1773098134223,4.44295607,85.779,85.751,4.0920499]
[1773098134431,4.44295607,85.779,85.746,4.0920499]
[1773098134810,4.44295607,85.769,85.742,4.0920499]
[1773098135010,4.44295607,85.769,85.74,4.18175136]
[1773098135928,4.44295607,85.769,85.74,15.84483507]
[1773098136528,4.44295607,85.767,85.74,15.84483507]
[1773098136722,4.44295607,85.767,85.74,11.66308371]
[1773098137235,4.44295607,85.767,85.736,11.66365508]
[1773098137520,4.44295607,85.759,85.724,29.16310412]
[1773098137732,4.44295607,85.749,85.711,15.7591638]
[1773098138035,4.44295607,85.749,85.712,4.0920499]
[1773098138709,4.44295607,85.747,85.714,4.0920499]
[1773098139032,11.66149806,85.753,85.721,4.0920499]
[1773098139233,16.10445413,85.753,85.731,4.0920499]
[1773098139735,4.44295607,85.752,85.731,4.0920499]
[1773098140428,4.44295607,85.758,85.731,4.0920499]
[1773098140830,4.44295607,85.758,85.74,4.18175136]
[1773098141122,4.44295607,85.758,85.74,8.27380126]
[1773098142013,4.44295607,85.763,85.741,11.66303168]
[1773098143128,11.66017583,85.762,85.742,4.0920499]
[1773098143306,4.44295607,85.778,85.751,4.0920499]
[1773098143622,4.44295607,85.778,85.742,4.0920499]
[1773098144022,4.44295607,85.778,85.741,11.66303168]
[1773098144427,4.44295607,85.769,85.741,11.66303168]
[1773098144815,4.44295607,85.769,85.736,11.66362492]
[1773098147425,4.44295607,85.767,85.736,11.66362492]
[1773098149436,4.44295607,85.767,85.736,15.75567482]
[1773098149616,4.44295607,85.765,85.74,4.18175136]
[1773098150108,4.44295607,85.765,85.74,8.27380126]
[1773098150315,4.44295607,85.765,85.741,4.0920499]
[1773098153641,4.23147312,85.774,85.751,4.4442465]
[1773098154335,4.23147312,85.774,85.75,4.18175136]
[1773098154536,4.23147312,85.774,85.746,4.4442465]
[1773098155131,4.23147312,85.774,85.742,11.66289566]
[1773098156740,4.23147312,85.772,85.742,11.66289566]
[1773098158844,4.23147312,85.77,85.742,4.4442465]
[1773098160643,4.23147312,85.769,85.733,4.4442465]
[1773098161736,40.80776046,85.768,85.731,11.66439211]
[1773098161947,40.80776046,85.768,85.724,29.16335547]
[1773098161948,4.23147312,85.739,85.701,4.4442465]
[1773098164330,4.1286441,85.749,85.721,4.26181506]
[1773098164549,4.1286441,85.749,85.731,4.26181506]
[1773098165928,4.1286441,85.759,85.731,4.26181506]
[1773098166549,4.1286441,85.759,85.733,4.26181506]
[1773098168249,4.1286441,85.757,85.733,4.26181506]
[1773098169049,4.1286441,85.755,85.734,11.66398395]
[1773098169246,4.1286441,85.755,85.734,15.92579901]
[1773098170627,4.1286441,85.755,85.735,4.26181506]
[1773098174143,4.1286441,85.753,85.73,15.84625276]
[1773098174752,4.1286441,85.753,85.73,11.6645014]
[1773098174960,4.1286441,85.753,85.722,15.92732715]
[1773098176043,4.1286441,85.753,85.722,4.26181506]
[1773098176237,4.1286441,85.739,85.698,4.26181506]
[1773098177055,4.1286441,85.739,85.689,29.17513801]
[1773098177056,4.1286441,85.739,85.7,8.44356642]
[1773098177250,4.1286441,85.739,85.701,4.26181506]
[1773098183662,4.1286441,85.737,85.703,4.26181506]
[1773098185772,4.1286441,85.729,85.702,11.66833912]
[1773098185950,4.1286441,85.729,85.693,4.26181506]
[1773098186448,4.1286441,85.729,85.7,4.18274506]
[1773098186650,4.1286441,85.729,85.7,8.44456012]
[1773098186855,4.1286441,85.729,85.7,4.26181506]
[1773098189869,4.1286441,85.727,85.694,4.26181506]
[1773098193068,4.1286441,85.725,85.696,4.26181506]
[1773098200267,4.06312205,85.73,85.701,4.08710621]
[1773098202069,4.06312205,85.73,85.7,4.18274506]
[1773098202070,4.06312205,85.729,85.697,40.8415697]
[1773098202276,4.06312205,85.727,85.697,40.8415697]
[1773098202476,4.06312205,85.719,85.696,11.6691101]
[1773098203676,4.06312205,85.719,85.696,4.08710621]
[1773098205480,4.06312205,85.718,85.696,4.08710621]
[1773098208365,4.06312205,85.718,85.697,11.66901991]
[1773098209371,4.43110656,85.716,85.693,11.66948919]
[1773098212391,4.43110656,85.716,85.693,4.35755247]
[1773098214987,4.43110656,85.716,85.68,4.18274506]
[1773098215171,4.18274506,85.69,85.652,4.35755247]
[1773098215368,4.18274506,85.68,85.652,4.35755247]
[1773098216680,4.18274506,85.67,85.65,0.1]
[1773098217283,4.43110656,85.668,85.65,0.1]
[1773098217996,4.43110656,85.659,85.65,0.1]
[1773098223195,11.67258984,85.671,85.65,4.45755247]
[1773098223589,4.23347619,85.669,85.65,4.45755247]
[1773098223827,4.23347619,85.659,85.62,4.44295202]
[1773098223990,4.23347619,85.639,85.62,4.44295202]
[1773098224183,4.23347619,85.639,85.62,16.12241408]
[1773098224501,4.23347619,85.639,85.62,4.44295202]
[1773098224995,4.23347619,85.639,85.62,0.1]
[1773098225177,11.67705924,85.638,85.62,0.1]
[1773098225383,4.23347619,85.629,85.61,4.44295202]
[1773098225582,4.23347619,85.629,85.61,0.1]
[1773098227589,11.67842294,85.628,85.61,0.1]
[1773098227784,4.23347619,85.627,85.61,0.1]
[1773098228182,11.67842294,85.628,85.6,0.1]
[1773098228183,4.23347619,85.619,85.6,0.1]
[1773098228386,4.23347619,85.619,85.589,4.34295202]
[1773098228387,4.23347619,85.609,85.584,4.34295202]
[1773098228586,4.23347619,85.589,85.56,0.1]
[1773098228792,4.23347619,85.579,85.56,0.1]
[1773098229196,4.23347619,85.579,85.54,4.18274506]
[1773098229197,4.23347619,85.569,85.531,4.34295202]
[1773098229600,4.23347619,85.579,85.541,4.34295202]
[1773098229784,11.68510966,85.579,85.543,4.34295202]
[1773098230301,4.23347619,85.578,85.543,4.34295202]
[1773098230506,4.23347619,85.578,85.542,11.69016389]
[1773098230795,4.23347619,85.569,85.542,11.69016389]
[1773098231003,4.23347619,85.569,85.543,4.34295202]
[1773098231182,4.23347619,85.586,85.551,4.34295202]
[1773098232883,4.23347619,85.584,85.553,4.34295202]
[1773098233878,4.23347619,85.582,85.554,11.6885242]
[1773098234099,4.23347619,85.582,85.555,4.34295202]
[1773098236109,4.23347619,85.58,85.555,4.34295202]
[1773098236695,4.23347619,85.58,85.556,11.68825097]
[1773098237092,4.23347619,85.58,85.557,4.34295202]
[1773098237499,4.23347619,85.588,85.56,4.18274506]
[1773098237700,4.23347619,85.588,85.561,4.34295202]
[1773098238401,4.23347619,85.586,85.563,4.34295202]
[1773098238830,4.23347619,85.586,85.562,11.68743133]
[1773098238990,4.23347619,85.586,85.563,4.34295202]
[1773098239387,4.23347619,85.591,85.571,4.34295202]
[1773098240009,4.23347619,85.591,85.563,4.34295202]
[1773098240709,4.23347619,85.596,85.571,4.34295202]
[1773098240912,4.23347619,85.596,85.57,4.18274506]
[1773098241312,4.23347619,85.596,85.571,4.34295202]
[1773098242911,4.23347619,85.596,85.573,4.34295202]
[1773098243111,4.23347619,85.594,85.573,4.34295202]
[1773098243515,4.23347619,85.594,85.562,4.34295202]
[1773098243713,4.23347619,85.569,85.537,4.34295202]
[1773098245003,4.23347619,85.567,85.539,4.34295202]
[1773098249315,4.23347619,85.567,85.541,4.34295202]
[1773098249518,4.23347619,85.579,85.551,4.34295202]
[1773098249710,4.23347619,85.588,85.551,4.34295202]
[1773098251925,40.89310541,85.589,85.553,4.34295202]
[1773098251926,4.23347619,85.586,85.553,4.34295202]
[1773098253634,4.25620428,85.579,85.553,4.34295202]
[1773098253924,4.25620428,85.579,85.548,11.68928516]
[1773098254526,4.25620428,85.577,85.546,4.09764615]
[1773098254706,4.25620428,85.577,85.546,15.78722217]
[1773098255518,4.25620428,85.577,85.546,4.09764615]
[1773098256326,4.25620428,85.577,85.548,4.09764615]
[1773098257927,4.25620428,85.575,85.548,4.09764615]
[1773098258715,4.25620428,85.575,85.543,4.09764615]
[1773098259929,4.25620428,85.559,85.53,4.09764615]
[1773098260131,4.25620428,85.559,85.53,15.78945019]
[1773098260332,4.25620428,85.559,85.531,4.09764615]
[1773098260635,4.25620428,85.569,85.531,4.09764615]
[1773098261837,4.25620428,85.567,85.533,4.09764615]
[1773098264524,4.25620428,85.565,85.535,4.09764615]
[1773098266940,4.25620428,85.565,85.504,58.47664371]
[1773098266941,15.94166895,85.577,85.551,4.09764615]
[1773098267137,15.94166895,85.577,85.56,4.19720178]
[1773098267642,15.94166895,85.577,85.56,8.29484793]
[1773098268038,4.25620428,85.582,85.561,4.09764615]
[1773098268441,3.75620428,85.582,85.562,4.09764615]
[1773098268632,11.6837444,85.589,85.562,4.09764615]
[1773098269534,11.6837444,85.589,85.556,4.09764615]
[1773098270036,40.89310541,85.589,85.556,4.09764615]
[1773098270237,40.89310541,85.589,85.558,4.12645211]
[1773098270445,4.41052803,85.588,85.558,4.12645211]
[1773098270931,4.41052803,85.588,85.561,4.12645211]
[1773098273436,4.41052803,85.586,85.561,4.12645211]
[1773098273645,4.41052803,85.586,85.56,4.19720178]
[1773098273847,4.41052803,85.586,85.556,4.12645211]
[1773098274546,4.41052803,85.586,85.558,4.12645211]
[1773098279052,4.41052803,85.584,85.561,4.12645211]
[1773098279348,4.41052803,85.584,85.556,4.12645211]
[1773098279555,11.68381076,85.589,85.561,4.12645211]
[1773098280042,16.09433879,85.589,85.561,4.12645211]
[1773098280543,4.41052803,85.588,85.561,4.12645211]
[1773098281048,4.41052803,85.586,85.561,4.12645211]
[1773098282237,4.41052803,85.579,85.555,4.12645211]
[1773098282444,4.41052803,85.579,85.542,4.12645211]
[1773098284051,3.98959737,85.577,85.544,4.06986115]
[1773098286245,3.98959737,85.569,85.534,4.06986115]
[1773098286544,3.98959737,85.559,85.53,4.19720178]
[1773098286744,3.98959737,85.559,85.531,4.06986115]
[1773098286943,3.98959737,85.559,85.531,15.76152849]
[1773098287541,3.98959737,85.559,85.521,11.69303445]
[1773098287746,3.98959737,85.549,85.522,4.06986115]
[1773098287956,4.19720178,85.53,85.51,0.1]
[1773098288255,4.19720178,85.56,85.499,4.06986115]
[1773098288256,4.19720178,85.52,85.499,4.06986115]
[1773098288456,3.98959737,85.519,85.499,4.06986115]
[1773098289063,3.98959737,85.519,85.483,11.20755707]
[1773098289243,3.98959737,85.519,85.484,4.06986115]
[1773098289440,40.92227106,85.528,85.483,11.20755707]
[1773098289441,3.98959737,85.509,85.483,11.20755707]
[1773098289640,3.98959737,85.499,85.47,0.1]
[1773098289945,3.98959737,85.489,85.47,0.1]
[1773098290140,3.98959737,85.477,85.46,0.1]
[1773098290357,11.69891668,85.478,85.444,4.06986115]
[1773098290358,3.98959737,85.469,85.444,4.06986115]
[1773098292759,29.24717528,85.479,85.444,4.06986115]
[1773098292760,11.70028548,85.468,85.444,4.06986115]
[1773098293063,3.98959737,85.467,85.445,4.06986115]
[1773098294951,3.98959737,85.467,85.446,11.70329798]
[1773098295160,3.98959737,85.467,85.447,4.06986115]
[1773098295949,3.98959737,85.459,85.428,4.06986115]
[1773098296446,3.98959737,85.459,85.436,11.70466782]
[1773098296652,3.98959737,85.459,85.434,4.06986115]
[1773098296951,3.98959737,85.459,85.435,4.33341335]
[1773098297753,3.98959737,85.459,85.435,16.03821785]
[1773098298046,11.70077913,85.465,85.436,4.06986115]
[1773098298251,3.98959737,85.474,85.441,4.06986115]
[1773098298844,4.19720178,85.47,85.441,4.06986115]
[1773098299051,4.19720178,85.47,85.44,4.19720178]
[1773098299052,3.98959737,85.459,85.435,11.9683567]
[1773098299876,3.98959737,85.457,85.435,0.2635522]
[1773098300574,3.98959737,85.457,85.436,11.70466782]
[1773098300873,4.19720178,85.48,85.451,4.06986115]
[1773098302269,11.69877981,85.479,85.451,4.06986115]
[1773098302476,11.69877981,85.479,85.452,11.70247624]
[1773098302682,3.98959737,85.478,85.452,15.77233739]
[1773098303575,11.69905354,85.477,85.452,15.77233739]
[1773098303777,3.98959737,85.476,85.452,15.77233739]
[1773098305774,3.98959737,85.476,85.453,4.06986115]
[1773098306477,3.98959737,85.474,85.453,4.06986115]
[1773098308275,4.20813234,85.48,85.455,4.06986115]
[1773098308473,11.69668234,85.495,85.471,4.06986115]
[1773098309075,3.98959737,85.496,85.471,4.06986115]
[1773098310372,3.98959737,85.496,85.471,15.76967036]
[1773098310373,11.69659044,85.495,85.471,15.76967036]
[1773098310575,11.69659044,85.495,85.472,4.06986115]
[1773098311268,15.68618781,85.495,85.472,4.06986115]
[1773098311470,3.98959737,85.489,85.466,4.06986115]
[1773098312177,3.98959737,85.499,85.466,4.06986115]
[1773098312564,15.68609261,85.496,85.468,4.06986115]
[1773098312962,15.68609261,85.496,85.471,4.06986115]
[1773098313362,4.04125498,85.495,85.471,4.06986115]
[1773098316298,15.73798223,85.494,85.472,11.69973792]
[1773098316594,4.04125498,85.493,85.472,4.27023287]
[1773098316879,4.04125498,85.493,85.461,4.27023287]
[1773098318890,4.04125498,85.489,85.456,4.27023287]
[1773098319101,4.04125498,85.479,85.456,4.27023287]
[1773098320162,11.69700088,85.492,85.461,4.27023287]
[1773098320391,11.69637729,85.497,85.471,4.27023287]
[1773098320985,11.6952225,85.505,85.473,4.27023287]
[1773098321899,11.6952225,85.505,85.481,4.27023287]
[1773098322069,4.04125498,85.514,85.491,4.27023287]
[1773098323168,11.69412837,85.513,85.491,4.27023287]
[1773098325482,4.04125498,85.513,85.491,4.27023287]
[1773098326679,44.96783268,85.519,85.491,4.27023287]
[1773098326882,40.9265777,85.519,85.491,4.27023287]
[1773098327391,4.04125498,85.529,85.501,4.27023287]
[1773098327570,4.04125498,85.519,85.491,11.69708206]
[1773098327770,4.04125498,85.509,85.482,4.27023287]
[1773098328489,4.20813234,85.5,85.482,4.27023287]
[1773098328994,4.04125498,85.499,85.44,4.20813234]
[1773098329201,4.04125498,85.499,85.46,4.20813234]
[1773098329574,4.04125498,85.497,85.461,11.70124384]
[1773098329891,4.04125498,85.497,85.47,4.20813234]
[1773098331188,4.40093344,85.507,85.481,4.36776904]
[1773098331595,4.40093344,85.507,85.48,4.20813234]
[1773098331596,4.40093344,85.507,85.483,4.36776904]
[1773098332096,4.40093344,85.506,85.483,4.36776904]
[1773098334099,4.40093344,85.504,85.478,16.06668572]
[1773098334682,4.40093344,85.504,85.47,20.27585847]
[1773098334888,11.6952225,85.505,85.471,4.36776904]
[1773098335093,4.40093344,85.504,85.471,4.36776904]
[1773098335801,11.6952225,85.505,85.481,4.36776904]
[1773098336186,4.40093344,85.509,85.483,4.36776904]
[1773098337907,4.40093344,85.509,85.471,4.36776904]
[1773098338199,4.40093344,85.509,85.472,4.36776904]
[1773098338918,4.40093344,85.507,85.474,4.36776904]
[1773098340221,4.40093344,85.507,85.481,4.36776904]
[1773098341717,4.40093344,85.521,85.501,4.36776904]
[1773098342400,4.40093344,85.521,85.491,4.36776904]
[1773098343406,29.22923638,85.531,85.501,4.35938046]
[1773098343407,11.69235513,85.526,85.501,4.35938046]
[1773098343610,29.22923638,85.531,85.503,4.35938046]
[1773098343795,4.0985819,85.533,85.511,4.35938046]
[1773098345694,4.0985819,85.54,85.513,4.35938046]
[1773098346116,4.0985819,85.539,85.513,4.35938046]
[1773098346420,4.0985819,85.539,85.48,4.20813234]
[1773098346421,4.0985819,85.539,85.501,4.35938046]
[1773098348016,4.0985819,85.537,85.511,4.35938046]
[1773098351920,4.0985819,85.535,85.511,4.35938046]
[1773098352417,4.0985819,85.535,85.504,4.35938046]
[1773098353621,40.91844369,85.536,85.504,4.35938046]
[1773098353622,4.0985819,85.533,85.504,4.35938046]